fUSD/lending_fUSD_20240117
["ID","MTS","AMOUNT","RATE_DAILY","PERIOD"]
[311892687,1705489899511,-32469.27,0.00023561,2]
[311892688,1705489899521,-169.34586269,0.00023561,2]
[311892689,1705489899531,-573.08,0.00023561,2]
[311892690,1705489899541,-500.0,0.00023561,2]
[311892691,1705489899550,-661.33,0.00023561,2]
[311892692,1705489899560,-615.65,0.00023561,2]
[311892693,1705489899569,-649.27,0.00023561,2]
[311892694,1705489899578,-2575.9,0.00023561,2]
[311892695,1705489899588,-1939.24,0.00023561,2]
[311892696,1705489899597,-3511.42,0.00023561,2]
[311892697,1705489899608,-500.0,0.00023561,2]
[311892698,1705489899618,-500.0,0.00023561,2]
[311892699,1705489899627,-500.0,0.00023561,2]
[311892700,1705489899636,-500.0,0.00023561,2]
[311892701,1705489899645,-500.0,0.00023561,2]
[311892702,1705489899654,-1929.09,0.00023561,2]
[311892703,1705489899663,-1412.27,0.00023561,2]
[311892704,1705489899672,-500.0,0.00023561,2]
[311892705,1705489899682,-2389.77,0.00023561,2]
[311892706,1705489899691,-2475.33,0.00023561,2]
[311892707,1705489899701,-4575.47,0.00023561,2]
[311892708,1705489899710,-661.55,0.00023561,2]
[311892709,1705489899720,-1653.65,0.00023561,2]
[311892710,1705489899729,-500.0,0.00023561,2]
[311892711,1705489899738,-14816.63,0.00023561,2]
[311892712,1705489899748,-1732.77,0.00023561,2]
[311892713,1705489899757,-500.0,0.00023561,2]
[311892714,1705489899766,-834.9,0.00023561,2]
[311892715,1705489899775,-8016.45,0.00023561,2]
[311892716,1705489899785,-500.0,0.00023561,2]
[311892717,1705489899796,-1784.49,0.00023561,2]
[311892718,1705489899806,-1352.99,0.00023561,2]
[311892719,1705489899815,-558.85,0.00023561,2]
[311892720,1705489899825,-500.0,0.00023561,2]
[311892721,1705489899834,-678.67,0.00023561,2]
[311892722,1705489899844,-1038.1,0.00023561,2]
[311892723,1705489899853,-9036.89,0.00023561,2]
[311892724,1705489899862,-815.12,0.00023561,2]
[311892725,1705489899871,-500.0,0.00023561,2]
[311892726,1705489899881,-1774.09,0.00023561,2]
[311892727,1705489899890,-502.32,0.00023561,2]
[311892728,1705489899899,-2414.66,0.00023561,2]
[311892729,1705489899908,-5111.21,0.00023561,2]
[311892730,1705489899917,-500.0,0.00023561,2]
[311892731,1705489899927,-1734.88,0.00023561,2]
[311892732,1705489899936,-855.29,0.00023561,2]
[311892733,1705489899945,-500.0,0.00023561,2]
[311892734,1705489899954,-500.0,0.00023561,2]
[311892735,1705489899963,-2245.54,0.00023561,2]
[311892736,1705489899973,-500.0,0.00023561,2]
[311892737,1705489899982,-1744.59,0.00023561,2]
[311892738,1705489899992,-1274.36,0.00023561,2]
[311892739,1705489900002,-706.05,0.00023561,2]
[311892740,1705489900012,-500.0,0.00023561,2]
[311892741,1705489900021,-1510.08,0.00023561,2]
[311892742,1705489900031,-429.68195326,0.00023561,2]
[311892743,1705489900041,-887.83,0.00023561,2]
[311892744,1705489900051,-500.0,0.00023561,2]
[311892745,1705489900060,-1357.1,0.00023561,2]
[311892746,1705489900069,-1827.37,0.00023561,2]
[311892747,1705489900079,-584.24,0.00023561,2]
[311892748,1705489900088,-1435.95,0.00023561,2]
[311892749,1705489900097,-663.37,0.00023561,2]
[311892750,1705489900106,-779.77,0.00023561,2]
[311892751,1705489900203,-597.44,0.00023561,2]
[311892752,1705489900212,-4561.81,0.00023561,2]
[311892753,1705489900221,-159.72088676,0.00023561,2]
[311892754,1705489900230,-3629.95,0.00023561,2]
[311892755,1705489900239,-500.0,0.00023561,2]
[311892756,1705489900248,-916.35,0.00023561,2]
[311892757,1705489900258,-1883.37,0.00023561,2]
[311892758,1705489900267,-992.47,0.00023561,2]
[311892759,1705489900276,-1639.63,0.00023561,2]
[311892760,1705489900285,-1741.77,0.00023561,2]
[311892761,1705489900294,-3959.88,0.00023561,2]
[311892762,1705489900304,-820.93,0.00023561,2]
[311892763,1705489900313,-7153.04,0.00023561,2]
[311892764,1705489900323,-500.0,0.00023561,2]
[311892765,1705489900333,-2360.61,0.00023561,2]
[311892766,1705489900343,-782.9,0.00023561,2]
[311892767,1705489900352,-806.13,0.00023561,2]
[311892768,1705489900363,-500.0,0.00023561,2]
[311892769,1705489900373,-1392.64,0.00023561,2]
[311892770,1705489900382,-507.5,0.00023561,2]
[311892771,1705489900392,-1083.43,0.00023561,2]
[311892772,1705489900402,-500.0,0.00023561,2]
[311892773,1705489900411,-778.97,0.00023561,2]
[311892774,1705489900420,-500.0,0.00023561,2]
[311892775,1705489900430,-909.26,0.00023561,2]
[311892776,1705489900439,-979.46,0.00023561,2]
[311892777,1705489900451,-3419.57,0.00023561,2]
[311892778,1705489900461,-1060.67,0.00023561,2]
[311892779,1705489900470,-1861.48,0.00023561,2]
[311892780,1705489900480,-3566.82,0.00023561,5]
[311892781,1705489900489,-2842.76,0.00023561,2]
[311892782,1705489900498,-1210.04,0.00023561,2]
[311892783,1705489900507,-1159.83,0.00023561,2]
[311892784,1705489900515,-1906.25,0.00023561,2]
[311892785,1705489900524,-1195.39,0.00023561,2]
[311892786,1705489900534,-5873.11,0.00023561,2]
[311892787,1705489900544,-500.0,0.00023561,2]
[311892788,1705489900552,-500.0,0.00023561,2]
[311892789,1705489900561,-1059.12,0.00023561,2]
[311892790,1705489900571,-500.0,0.00023561,2]
[311892791,1705489900580,-500.0,0.00023561,2]
[311892792,1705489900590,-2140.36,0.00023561,2]
[311892793,1705489900600,-3914.25,0.00023561,2]
[311892794,1705489900609,-1418.66,0.00023561,2]
[311892795,1705489900619,-1392.42,0.00023561,2]
[311892796,1705489900628,-500.0,0.00023561,2]
[311892797,1705489900637,-1713.01,0.00023561,2]
[311892798,1705489900646,-500.0,0.00023561,2]
[311892799,1705489900655,-778.99,0.00023561,2]
[311892800,1705489900664,-2146.35,0.00023561,2]
[311892801,1705489900673,-500.0,0.00023561,2]
[311892802,1705489900682,-2303.4,0.00023561,2]
[311892803,1705489900691,-500.0,0.00023561,2]
[311892804,1705489900700,-500.0,0.00023561,2]
[311892805,1705489900710,-2140.57,0.00023561,2]
[311892806,1705489900719,-4765.45,0.00023561,2]
[311892807,1705489900729,-1461.06,0.00023561,2]
[311892808,1705489900738,-500.0,0.00023561,2]
[311892809,1705489900748,-500.0,0.00023561,2]
[311892810,1705489900758,-1784.9,0.00023561,2]
[311892811,1705489900767,-539.85,0.00023561,2]
[311892812,1705489900777,-672.09,0.00023561,2]
[311892813,1705489900786,-1509.91,0.00023561,2]
[311892814,1705489900795,-27781.74,0.00023561,2]
[311892815,1705489900803,-881.13,0.00023561,2]
[311892816,1705489900812,-534.01,0.00023561,2]
[311892817,1705489900822,-2094.77,0.00023561,2]
[311892818,1705489900831,-1969.05,0.00023561,2]
[311892819,1705489900840,-591.22,0.00023561,2]
[311892820,1705489900849,-1724.25,0.00023561,2]
[311892821,1705489900859,-500.0,0.00023561,2]
[311892822,1705489900868,-2966.94,0.00023561,2]
[311892823,1705489900878,-500.0,0.00023561,2]
[311892824,1705489900887,-500.0,0.00023561,2]
[311892825,1705489900896,-1073.7,0.00023561,2]
[311892826,1705489900906,-2716.01,0.00023561,2]
[311892827,1705489900915,-856.24,0.00023561,2]
[311892828,1705489900924,-3130.06,0.00023561,2]
[311892829,1705489900933,-5190.51,0.00023561,2]
[311892830,1705489900942,-1373.46,0.00023561,2]
[311892831,1705489900951,-1107.84,0.00023561,2]
[311892832,1705489900960,-500.0,0.00023561,2]
[311892833,1705489900969,-4976.8,0.00023561,2]
[311892834,1705489900978,-2577.68,0.00023561,2]
[311892835,1705489900987,-1821.72,0.00023561,2]
[311892836,1705489900997,-500.0,0.00023561,2]
[311892837,1705489901007,-2636.23,0.00023561,2]
[311892838,1705489901016,-500.0,0.00023561,2]
[311892839,1705489901026,-500.0,0.00023561,2]
[311892840,1705489901035,-795.84,0.00023561,2]
[311892841,1705489901044,-4042.57,0.00023561,2]
[311892842,1705489901054,-500.0,0.00023561,2]
[311892843,1705489901063,-1181.55,0.00023561,2]
[311892844,1705489901072,-500.0,0.00023561,2]
[311892845,1705489901082,-500.0,0.00023561,2]
[311892846,1705489901091,-1662.15,0.00023561,2]
[311892847,1705489901101,-964.47,0.00023561,2]
[311892848,1705489901110,-500.0,0.00023561,2]
[311892849,1705489901119,-1443.1,0.00023561,2]
[311892850,1705489901128,-829.46,0.00023561,2]
[311892851,1705489901138,-500.0,0.00023561,2]
[311892852,1705489901147,-1683.87,0.00023561,2]
[311892853,1705489901156,-1912.07,0.00023561,2]
[311892854,1705489901166,-602.95,0.00023561,2]
[311892855,1705489901176,-2975.27,0.00023561,2]
[311892856,1705489901185,-1794.36,0.00023561,2]
[311892857,1705489901194,-1938.89,0.00023561,2]
[311892858,1705489901204,-3013.34,0.00023561,2]
[311892859,1705489901213,-649.62,0.00023561,2]
[311892860,1705489901223,-8143.8,0.00023561,2]
[311892861,1705489901232,-534.83611157,0.00023561,2]
[311892862,1705489901241,-509.62,0.00023561,2]
[311892863,1705489901251,-1207.37,0.00023561,2]
[311892864,1705489901260,-1304.2,0.00023561,2]
[311892865,1705489901270,-500.0,0.00023561,2]
[311892866,1705489901279,-1538.7,0.00023561,2]
[311892867,1705489901288,-924.58,0.00023561,2]
[311892868,1705489901300,-2403.64,0.00023561,2]
[311892869,1705489901309,-500.0,0.00023561,2]
[311892870,1705489901319,-500.0,0.00023561,2]
[311892871,1705489901328,-852.81,0.00023561,2]
[311892872,1705489901338,-1179.93,0.00023561,2]
[311892873,1705489901347,-1937.17,0.00023561,2]
[311892874,1705489901359,-1023.73,0.00023561,2]
[311892875,1705489901369,-500.0,0.00023561,2]
[311892876,1705489901379,-2592.46,0.00023561,2]
[311892877,1705489901389,-968.29,0.00023561,2]
[311892878,1705489901399,-3413.16,0.00023561,2]
[311892879,1705489901408,-500.0,0.00023561,2]
[311892880,1705489901417,-500.0,0.00023561,2]
[311892881,1705489901427,-500.0,0.00023561,2]
[311892882,1705489901436,-1297.47,0.00023561,2]
[311892883,1705489901447,-745.84,0.00023561,2]
[311892884,1705489901457,-2908.69,0.00023561,2]
[311892885,1705489901467,-815.9,0.00023561,2]
[311892886,1705489901476,-1190.11,0.00023561,2]
[311892887,1705489901485,-500.0,0.00023561,2]
[311892888,1705489901494,-500.0,0.00023561,2]
[311892889,1705489901504,-8716.14,0.00023561,2]
[311892890,1705489901513,-601.43,0.00023561,2]
[311892891,1705489901523,-3604.29,0.00023561,5]
[311892892,1705489901533,-2488.53,0.00023561,2]
[311892893,1705489901543,-500.0,0.00023561,2]
[311892894,1705489901554,-681.48,0.00023561,2]
[311892895,1705489901563,-1866.72,0.00023561,2]
[311892896,1705489901572,-500.0,0.00023561,2]
[311892897,1705489901582,-571.22,0.00023561,2]
[311892898,1705489901591,-1014.39,0.00023561,2]
[311892899,1705489901601,-1914.04003524,0.00023598,3]
[311892900,1705489901610,-6608.47556175,0.0002361,2]
[311892901,1705489901620,-163.49,0.00023619,2]
[311892902,1705489901628,-300.0,0.00023651,2]
[311892903,1705489901637,-347.19,0.00023691,2]
[311892904,1705489901647,-6608.47556175,0.00023735,2]
[311892905,1705489901656,-250.0,0.000238,2]
[311892906,1705489901667,-250.0,0.000238,2]
[311892907,1705489901676,-250.0,0.000238,2]
[311892908,1705489901685,-250.0,0.000238,2]
[311892909,1705489901694,-250.0,0.000238,2]
[311892910,1705489901703,-250.0,0.000238,2]
[311892911,1705489901712,-500.0,0.0002381,2]
[311892912,1705489901721,-1504.83,0.00023835,2]
[311892913,1705489901730,-752.6,0.00023835,2]
[311892914,1705489901743,-500.0,0.00023835,2]
[311892915,1705489901752,-500.0,0.00023835,2]
[311892916,1705489901761,-1005.29,0.00023835,2]
[311892917,1705489901770,-581.65,0.00023835,2]
[311892918,1705489901780,-724.82,0.00023835,2]
[311892919,1705489901789,-500.0,0.00023835,2]
[311892920,1705489901800,-600.28,0.00023835,2]
[311892921,1705489901809,-500.0,0.00023835,2]
[311892922,1705489901818,-256.35536648,0.00023835,2]
[311892923,1705489901828,-568.6,0.00023835,2]
[311892924,1705489901837,-500.0,0.00023835,2]
[311892925,1705489901846,-500.0,0.00023835,2]
[311892926,1705489901855,-500.0,0.00023835,2]
[311892927,1705489901864,-514.64,0.00023835,2]
[311892928,1705489901874,-522.85,0.00023835,2]
[311892929,1705489901884,-500.0,0.00023835,2]
[311892930,1705489901893,-561.37,0.00023835,2]
[311892931,1705489901903,-500.0,0.00023835,2]
[311892932,1705489901911,-500.0,0.00023835,2]
[311892933,1705489901921,-569.46,0.00023835,2]
[311892934,1705489901930,-564.18,0.00023835,2]
[311892935,1705489901939,-1178.46,0.00023835,2]
[311892936,1705489901948,-585.02244111,0.00023835,2]
[311892937,1705489901958,-573.27,0.00023835,2]
[311892938,1705489901967,-500.0,0.00023835,2]
[311892939,1705489901977,-540.7,0.00023835,2]
[311892940,1705489901986,-500.0,0.00023835,2]
[311892941,1705489901996,-500.0,0.00023835,2]
[311892942,1705489902005,-507.73,0.00023835,2]
[311892943,1705489902015,-500.0,0.00023835,2]
[311892944,1705489902024,-500.0,0.00023835,2]
[311892945,1705489902034,-313.52,0.00023835,2]
[311892946,1705489902043,-500.0,0.00023835,2]
[311892947,1705489902053,-500.0,0.00023835,2]
[311892948,1705489902063,-554.53,0.00023835,2]
[311892949,1705489902072,-676.5,0.00023835,2]
[311892950,1705489902081,-569.53,0.00023835,2]
[311892951,1705489902091,-500.0,0.00023835,2]
[311892952,1705489902100,-773.49,0.00023835,2]
[311892953,1705489902109,-500.0,0.00023835,2]
[311892954,1705489902118,-500.0,0.00023835,2]
[311892955,1705489902128,-500.0,0.00023835,2]
[311892956,1705489902137,-713.2,0.00023835,2]
[311892957,1705489902147,-924.46,0.00023835,2]
[311892958,1705489902156,-500.0,0.00023835,2]
[311892959,1705489902166,-1087.8,0.00023835,2]
[311892960,1705489902176,-748.0,0.00023835,2]
[311892961,1705489902185,-590.98,0.00023835,2]
[311892962,1705489902195,-404.88416276,0.00023835,2]
[311892963,1705489902204,-1140.29,0.00023835,2]
[311892964,1705489902214,-500.0,0.00023835,2]
[311892965,1705489902224,-500.0,0.00023835,2]
[311892966,1705489902233,-771.56,0.00023835,2]
[311892967,1705489902243,-500.0,0.00023835,2]
[311892968,1705489902252,-500.0,0.00023835,2]
[311892969,1705489902262,-500.0,0.00023835,2]
[311892970,1705489902272,-500.0,0.00023835,2]
[311892971,1705489902281,-510.92721728,0.00023835,2]
[311892972,1705489902291,-841.84,0.00023835,2]
[311892973,1705489902301,-1103.54,0.00023835,2]
[311892974,1705489902310,-771.02,0.00023835,2]
[311892975,1705489902319,-674.53,0.00023835,2]
[311892976,1705489902329,-500.0,0.00023835,2]
[311892977,1705489902339,-500.0,0.00023835,2]
[311892978,1705489902351,-1012.5,0.00023835,2]
[311892979,1705489902361,-708.29,0.00023835,2]
[311892980,1705489902370,-902.18,0.00023835,2]
[311892981,1705489902380,-642.34,0.00023835,2]
[311892982,1705489902392,-500.0,0.00023835,2]
[311892983,1705489902402,-1577.38,0.00023835,2]
[311892984,1705489902412,-500.0,0.00023835,2]
[311892985,1705489902422,-519.03751574,0.00023835,2]
[311892986,1705489902432,-642.91,0.00023835,2]
[311892987,1705489902442,-671.72,0.00023835,2]
[311892988,1705489902451,-559.49,0.00023835,2]
[311892989,1705489902461,-500.0,0.00023835,2]
[311892990,1705489902470,-513.19,0.00023835,2]
[311892991,1705489902479,-1101.33,0.00023835,2]
[311892992,1705489902489,-560.17,0.00023835,2]
[311892993,1705489902498,-646.26,0.00023835,2]
[311892994,1705489902507,-500.0,0.00023835,2]
[311892995,1705489902516,-540.47,0.00023835,2]
[311892996,1705489902526,-1309.23,0.00023835,2]
[311892997,1705489902535,-862.21,0.00023835,2]
[311892998,1705489902544,-500.0,0.00023835,2]
[311892999,1705489902553,-500.0,0.00023835,2]
[311893000,1705489902563,-592.26,0.00023835,2]
[311893001,1705489902573,-500.0,0.00023835,2]
[311893002,1705489902582,-548.37,0.00023835,2]
[311893003,1705489902591,-852.28,0.00023835,2]
[311893004,1705489902601,-751.97,0.00023835,2]
[311893005,1705489902610,-629.68,0.00023835,2]
[311893006,1705489902619,-500.0,0.00023835,2]
[311893007,1705489902629,-1038.17,0.00023835,2]
[311893008,1705489902638,-865.86,0.00023835,2]
[311893009,1705489902649,-500.0,0.00023835,2]
[311893010,1705489902658,-500.0,0.00023835,2]
[311893011,1705489902668,-809.41,0.00023835,2]
[311893012,1705489902678,-824.35,0.00023835,2]
[311893013,1705489902688,-500.0,0.00023835,2]
[311893014,1705489902698,-500.0,0.00023835,2]
[311893015,1705489902707,-858.82,0.00023835,2]
[311893016,1705489902716,-583.98,0.00023835,2]
[311893017,1705489902726,-500.0,0.00023835,2]
[311893018,1705489902735,-678.81,0.00023835,2]
[311893019,1705489902744,-924.3,0.00023835,2]
[311893020,1705489902753,-683.06,0.00023835,2]
[311893021,1705489902763,-500.0,0.00023835,2]
[311893022,1705489902772,-762.3,0.00023835,2]
[311893023,1705489902781,-500.0,0.00023835,2]
[311893024,1705489902790,-500.0,0.00023835,2]
[311893025,1705489902801,-500.0,0.00023835,2]
[311893026,1705489902810,-869.48,0.00023835,2]
[311893027,1705489902819,-726.09,0.00023835,2]
[311893028,1705489902828,-500.0,0.00023835,2]
[311893029,1705489902838,-500.0,0.00023835,2]
[311893030,1705489902847,-636.58,0.00023835,2]
[311893031,1705489902855,-500.0,0.00023835,2]
[311893032,1705489902865,-888.84,0.00023835,2]
[311893033,1705489902874,-681.16,0.00023835,2]
[311893034,1705489902883,-579.07887829,0.00023835,2]
[311893035,1705489902893,-986.98,0.00023835,2]
[311893036,1705489902902,-1114.57,0.00023835,2]
[311893037,1705489902911,-500.0,0.00023835,2]
[311893038,1705489902920,-560.75,0.00023835,2]
[311893039,1705489902929,-1015.76,0.00023835,2]
[311893040,1705489902938,-818.15,0.00023835,2]
[311893041,1705489902947,-924.47,0.00023835,2]
[311893042,1705489902957,-565.32,0.00023835,2]
[311893043,1705489902967,-778.03,0.00023835,2]
[311893044,1705489902975,-938.79,0.00023835,2]
[311893045,1705489902985,-685.24,0.00023835,2]
[311893046,1705489902994,-1126.57,0.00023835,2]
[311893047,1705489903003,-1529.03,0.00023835,2]
[311893048,1705489903012,-842.83,0.00023835,2]
[311893049,1705489903021,-677.6,0.00023835,2]
[311893050,1705489903030,-500.0,0.00023835,2]
[311893051,1705489903040,-1113.11,0.00023835,2]
[311893052,1705489903050,-824.64,0.00023835,2]
[311893053,1705489903060,-1539.23,0.00023835,2]
[311893054,1705489903069,-500.0,0.00023835,2]
[311893055,1705489903079,-500.0,0.00023835,2]
[311893056,1705489903088,-802.8,0.00023835,2]
[311893057,1705489903097,-1060.88,0.00023835,2]
[311893058,1705489903106,-509.96,0.00023835,2]
[311893059,1705489903115,-620.77,0.00023835,2]
[311893060,1705489903124,-500.0,0.00023835,2]
[311893061,1705489903134,-500.0,0.00023835,2]
[311893062,1705489903144,-1111.84,0.00023835,2]
[311893063,1705489903153,-500.0,0.00023835,2]
[311893064,1705489903163,-797.2,0.00023835,2]
[311893065,1705489903173,-554.16,0.00023835,2]
[311893066,1705489903183,-814.02,0.00023835,2]
[311893067,1705489903193,-653.02,0.00023835,2]
[311893068,1705489903203,-500.0,0.00023835,2]
[311893069,1705489903213,-728.98,0.00023835,2]
[311893070,1705489903223,-608.56,0.00023835,2]
[311893071,1705489903234,-500.0,0.00023835,2]
[311893072,1705489903244,-500.0,0.00023835,2]
[311893073,1705489903254,-500.0,0.00023835,2]
[311893074,1705489903264,-1117.37,0.00023835,2]
[311893075,1705489903273,-500.0,0.00023835,2]
[311893076,1705489903283,-786.84,0.00023835,2]
[311893077,1705489903294,-644.84,0.00023835,2]
[311893078,1705489903304,-865.83,0.00023835,2]
[311893079,1705489903314,-500.0,0.00023835,2]
[311893080,1705489903324,-500.0,0.00023835,2]
[311893081,1705489903333,-985.83,0.00023835,2]
[311893082,1705489903345,-645.46,0.00023835,2]
[311893083,1705489903354,-500.0,0.00023835,2]
[311893084,1705489903371,-518.91010442,0.00023835,2]
[311893085,1705489903381,-654.2,0.00023835,2]
[311893086,1705489903393,-671.37,0.00023835,2]
[311893087,1705489903403,-500.0,0.00023835,2]
[311893088,1705489903413,-500.0,0.00023835,2]
[311893089,1705489903423,-500.0,0.00023835,2]
[311893090,1705489903432,-500.0,0.00023835,2]
[311893091,1705489903443,-235.45612845,0.00023835,2]
[311893092,1705489903453,-677.29,0.00023835,2]
[311893093,1705489903463,-859.76,0.00023835,2]
[311893094,1705489903472,-679.83,0.00023835,2]
[311893095,1705489903481,-500.0,0.00023835,2]
[311893096,1705489903492,-812.38,0.00023835,2]
[311893097,1705489903502,-529.77,0.00023835,2]
[311893098,1705489903513,-500.0,0.00023835,2]
[311893099,1705489903522,-500.0,0.00023835,2]
[311893100,1705489903532,-905.75,0.00023835,2]
[311893101,1705489903542,-597.1,0.00023835,2]
[311893102,1705489903553,-500.0,0.00023835,2]
[311893103,1705489903563,-500.0,0.00023835,2]
[311893104,1705489903572,-976.89,0.00023835,2]
[311893105,1705489903582,-500.0,0.00023835,2]
[311893106,1705489903592,-921.81,0.00023835,2]
[311893107,1705489903602,-801.58,0.00023835,2]
[311893108,1705489903611,-1318.24,0.00023835,2]
[311893109,1705489903621,-267.04114776,0.00023835,2]
[311893110,1705489903631,-565.85,0.00023835,2]
[311893111,1705489903640,-500.0,0.00023835,2]
[311893112,1705489903650,-761.53,0.00023835,2]
[311893113,1705489903659,-500.0,0.00023835,2]
[311893114,1705489903669,-500.0,0.00023835,2]
[311893115,1705489903679,-903.46,0.00023835,2]
[311893116,1705489903689,-638.67,0.00023835,2]
[311893117,1705489903699,-500.0,0.00023835,2]
[311893118,1705489903709,-689.33,0.00023835,2]
[311893119,1705489903719,-500.0,0.00023835,2]
[311893120,1705489903728,-642.35,0.00023835,2]
[311893121,1705489903738,-500.0,0.00023835,2]
[311893122,1705489903747,-970.35,0.00023835,2]
[311893123,1705489903757,-500.0,0.00023835,2]
[311893124,1705489903767,-1001.32,0.00023835,2]
[311893125,1705489903777,-623.34,0.00023835,2]
[311893126,1705489903786,-1127.94,0.00023835,2]
[311893127,1705489903798,-500.0,0.00023835,2]
[311893128,1705489903807,-893.53,0.00023835,2]
[311893129,1705489903816,-703.72,0.00023835,2]
[311893130,1705489903825,-500.0,0.00023835,2]
[311893131,1705489903835,-500.0,0.00023835,2]
[311893132,1705489903845,-877.36,0.00023835,2]
[311893133,1705489903854,-500.0,0.00023835,2]
[311893134,1705489903863,-1113.03,0.00023835,2]
[311893135,1705489903873,-1009.59,0.00023835,2]
[311893136,1705489903883,-671.58,0.00023835,2]
[311893137,1705489903893,-645.55,0.00023835,2]
[311893138,1705489903903,-500.0,0.00023835,2]
[311893139,1705489903912,-519.72,0.00023835,2]
[311893140,1705489903921,-832.3,0.00023835,2]
[311893141,1705489903931,-509.1,0.00023835,2]
[311893142,1705489903941,-500.0,0.00023835,2]
[311893143,1705489903951,-556.75,0.00023835,2]
[311893144,1705489903961,-500.0,0.00023835,2]
[311893145,1705489903971,-919.94,0.00023835,2]
[311893146,1705489903980,-574.45,0.00023835,2]
[311893147,1705489903990,-730.7,0.00023835,2]
[311893148,1705489903999,-1564.11,0.00023835,2]
[311893149,1705489904009,-665.72,0.00023835,2]
[311893150,1705489904018,-753.37,0.00023835,2]
[311893151,1705489904027,-1972.35,0.00023835,2]
[311893152,1705489904038,-819.9,0.00023835,2]
[311893153,1705489904048,-1330.15,0.00023835,2]
[311893154,1705489904058,-500.0,0.00023835,2]
[311893155,1705489904068,-1961.2,0.00023835,2]
[311893156,1705489904079,-924.92,0.00023835,2]
[311893157,1705489904089,-1342.87,0.00023835,2]
[311893158,1705489904099,-500.0,0.00023835,2]
[311893159,1705489904109,-516.6,0.00023835,2]
[311893160,1705489904118,-966.0,0.00023835,2]
[311893161,1705489904128,-1214.22,0.00023835,2]
[311893162,1705489904138,-872.31,0.00023835,2]
[311893163,1705489904148,-539.96751379,0.00023835,2]
[311893164,1705489904158,-500.0,0.00023835,2]
[311893165,1705489904167,-748.35,0.00023835,2]
[311893166,1705489904177,-500.0,0.00023835,2]
[311893167,1705489904187,-500.0,0.00023835,2]
[311893168,1705489904196,-937.16,0.00023835,2]
[311893169,1705489904206,-799.25,0.00023835,2]
[311893170,1705489904215,-628.65,0.00023835,2]
[311893171,1705489904225,-500.0,0.00023835,2]
[311893172,1705489904235,-616.54,0.00023835,2]
[311893173,1705489904244,-500.0,0.00023835,2]
[311893174,1705489904254,-717.16,0.00023835,2]
[311893175,1705489904264,-500.0,0.00023835,2]
[311893176,1705489904274,-500.0,0.00023835,2]
[311893177,1705489904283,-500.0,0.00023835,2]
[311893178,1705489904293,-707.9,0.00023835,2]
[311893179,1705489904304,-2202.67,0.00023835,2]
[311893180,1705489904314,-994.43,0.00023835,2]
[311893181,1705489904323,-500.0,0.00023835,2]
[311893182,1705489904334,-1314.57,0.00023835,2]
[311893183,1705489904345,-500.0,0.00023835,2]
[311893184,1705489904355,-700.88,0.00023835,2]
[311893185,1705489904368,-747.11,0.00023835,2]
[311893186,1705489904378,-1247.23,0.00023835,2]